bitfinex/quotes_SOLUSD_20241127
["timestamp","ask_amount","ask_price","bid_price","bid_amount"]
[1732692798661,13.25123432,233.63,233.53,13.25123432]
[1732692799354,13.25123432,233.63,233.55,13.25123432]
[1732692800070,15.39133432,233.63,233.53,13.25123432]
[1732692800247,13.25123432,233.63,233.55,13.25123432]
[1732692801368,13.25123432,233.63,233.56,4.2815]
[1732692801949,13.25123432,233.63,233.55,13.25123432]
[1732692802157,13.25123432,233.61,233.53,17.53323432]
[1732692804276,13.25123432,233.59,233.51,13.25123432]
[1732692804455,13.25123432,233.57,233.49,13.25123432]
[1732692805350,13.25123432,233.57,233.5,4.2826]
[1732692805545,13.25123432,233.57,233.49,13.25123432]
[1732692805761,15.39193432,233.57,233.49,13.25123432]
[1732692806152,13.25123432,233.57,233.49,17.53393432]
[1732692807468,15.39183432,233.57,233.49,17.53393432]
[1732692808755,13.25123432,233.57,233.49,17.53393432]
[1732692809877,2.1406,233.58,233.51,13.25123432]
[1732692811568,15.39183432,233.58,233.51,13.25123432]
[1732692811962,15.39183432,233.58,233.49,13.25123432]
[1732692813356,15.39183432,233.58,233.49,17.53393432]
[1732692814270,2.1406,233.58,233.5,8.45965383]
[1732692815368,8.45965383,233.57,233.5,8.45965383]
[1732692815555,8.45965383,233.55,233.42,4.2841]
[1732692815759,8.45965383,233.53,233.45,8.45965383]
[1732692816465,8.45965383,233.53,233.45,12.74315383]
[1732692817362,2.141,233.54,233.47,8.45965383]
[1732692817675,15.9165,233.56,233.51,8.45965383]
[1732692817973,6.0654,233.61,233.45,14.9924]
[1732692818174,6.0654,233.61,233.55,8.45965383]
[1732692819079,8.2057,233.61,233.53,8.45965383]
[1732692819376,16.66535383,233.61,233.53,8.45965383]
[1732692819884,20.0,233.58,233.49,12.74245383]
[1732692820077,8.45965383,233.57,233.49,12.74245383]
[1732692820253,8.2057,233.61,233.49,17.50249821]
[1732692820613,13.21969821,233.55,233.47,13.21969821]
[1732692820792,2.1409,233.54,233.47,13.21969821]
[1732692822881,13.21969821,233.53,233.45,13.21969821]
[1732692823774,2.141,233.53,233.47,13.21969821]
[1732692824353,2.141,233.53,233.38,6.3419]
[1732692824354,13.21969821,233.51,233.39,20.0]
[1732692824567,13.21969821,233.51,233.42,13.21969821]
[1732692824766,13.21969821,233.51,233.39,20.0]
[1732692824767,13.21969821,233.51,233.44,13.21969821]
[1732692825570,15.36099821,233.51,233.44,13.21969821]
[1732692828668,13.21969821,233.51,233.44,13.21969821]
[1732692828876,13.21969821,233.51,233.44,17.50339821]
[1732692829581,15.9165,233.52,233.44,17.50339821]
[1732692829961,13.21969821,233.51,233.42,17.50359821]
[1732692830276,13.21969821,233.51,233.42,13.21969821]
[1732692830689,2.1413,233.5,233.42,13.21969821]
[1732692831379,2.1413,233.5,233.42,17.50369821]
[1732692831560,2.1413,233.5,233.44,13.21969821]
[1732692832065,15.36089821,233.51,233.44,13.21969821]
[1732692832258,22.5496,233.52,233.44,13.21969821]
[1732692832660,15.9165,233.52,233.46,17.50299821]
[1732692832982,16.1313,233.6,233.5,13.21969821]
[1732692833165,16.1313,233.6,233.52,13.21969821]
[1732692833478,18.2717,233.6,233.52,13.21969821]
[1732692834667,13.21969821,233.59,233.5,17.50209821]
[1732692835784,15.36019821,233.59,233.5,17.50209821]
[1732692836283,15.36019821,233.59,233.52,13.21969821]
[1732692837082,16.1313,233.6,233.52,17.50189821]
[1732692837795,13.21969821,233.59,233.52,17.50189821]
[1732692837997,13.21969821,233.59,233.52,4.2822]
[1732692838290,13.21969821,233.59,233.5,13.21969821]
[1732692838482,13.21969821,233.59,233.5,17.50219821]
[1732692839789,15.36019821,233.59,233.5,17.50219821]
[1732692840196,13.21969821,233.59,233.5,17.50219821]
[1732692840490,16.1313,233.6,233.52,13.21969821]
[1732692841085,16.1313,233.6,233.54,13.21969821]
[1732692841284,13.21969821,233.65,233.56,13.21969821]
[1732692841765,15.35959821,233.65,233.56,17.50109821]
[1732692842186,13.21969821,233.65,233.56,17.50109821]
[1732692843292,13.21969821,233.68,233.6,13.21969821]
[1732692843970,13.21969821,233.68,233.6,17.50029821]
[1732692844386,13.21969821,233.66,233.58,13.21969821]
[1732692844590,13.21969821,233.66,233.58,17.50069821]
[1732692844888,13.21969821,233.66,233.58,13.21969821]
[1732692845101,13.21969821,233.62,233.54,17.50139821]
[1732692846072,13.21969821,233.62,233.52,13.21969821]
[1732692846281,15.35999821,233.62,233.52,17.50179821]
[1732692846595,13.21969821,233.6,233.52,17.50179821]
[1732692847296,15.36009821,233.6,233.52,13.21969821]
[1732692847697,15.36009821,233.6,233.5,17.50209821]
[1732692847879,13.21969821,233.58,233.5,13.21969821]
[1732692848597,13.21969821,233.58,233.5,17.50219821]
[1732692850491,13.21969821,233.6,233.52,13.21969821]
[1732692850697,13.21969821,233.62,233.52,13.21969821]
[1732692851509,15.3578,233.63,233.56,13.21969821]
[1732692851679,15.3578,233.63,233.54,13.21969821]
[1732692852073,15.3578,233.63,233.56,13.21969821]
[1732692853400,6.3154,233.7,233.6,17.50049821]
[1732692853401,13.21969821,233.68,233.6,17.50049821]
[1732692854422,8.45061599,233.71,233.63,8.45061599]
[1732692854701,8.45061599,233.69,233.61,8.45061599]
[1732692855604,8.45061599,233.69,233.62,4.2804]
[1732692856287,2.1394,233.71,233.63,13.20408118]
[1732692856488,15.34348118,233.71,233.63,13.20408118]
[1732692856885,13.20408118,233.71,233.63,13.20408118]
[1732692857485,13.20408118,233.71,233.64,4.28]
[1732692858122,6.3154,233.75,233.64,4.28]
[1732692858123,13.20408118,233.75,233.67,13.20408118]
[1732692859701,13.20408118,233.75,233.68,4.2793]
[1732692861590,13.20408118,233.75,233.67,13.20408118]
[1732692861787,13.20408118,233.75,233.67,17.48358118]
[1732692861788,15.34308118,233.75,233.67,17.48358118]
[1732692862102,13.20408118,233.75,233.67,17.48358118]
[1732692863103,13.20408118,233.77,233.69,13.20408118]
[1732692864511,13.20408118,233.79,233.71,13.20408118]
[1732692864806,13.20408118,233.8,233.72,13.20408118]
[1732692864989,17.8129,233.82,233.72,13.20408118]
[1732692865191,13.20408118,233.81,233.72,13.20408118]
[1732692865914,13.20408118,233.81,233.73,4.2784]
[1732692868789,0.5134068,233.83,233.78,13.20408118]
[1732692870999,0.5134068,233.83,233.78,17.48138118]
[1732692873910,0.5134068,233.83,233.8,13.20408118]
[1732692874925,0.5134068,233.83,233.78,17.48138118]
[1732692876225,0.5134068,233.83,233.81,13.20408118]
[1732692876398,0.5134068,233.83,233.81,8.43789574]
[1732692878215,0.5134068,233.83,233.82,4.2767]
[1732692879803,0.5134068,233.83,233.82,19.28569574]
[1732692879804,6.8e-06,233.83,233.82,19.28569574]
[1732692880004,6.8e-06,233.83,233.82,59.35677974]
[1732692883023,6.8e-06,233.83,233.82,64.35677974]
[1732692883806,6.8e-06,233.83,233.82,59.35677974]
[1732692884129,6.8e-06,233.83,233.82,64.35677974]
[1732692884732,0.149,233.89,233.85,20.0]
[1732692884919,0.149,233.89,233.88,8.43789574]
[1732692885911,0.149,233.89,233.82,61.610784]
[1732692886115,0.149,233.89,233.86,8.43789574]
[1732692886937,0.149,233.89,233.87,4.2758]
[1732692887336,0.149,233.89,233.87,12.71369574]
[1732692889508,0.149,233.89,233.88,8.43789574]
[1732692889927,0.149,233.89,233.83,4.2766]
[1732692890126,0.149,233.89,233.83,12.71449574]
[1732692891242,0.149,233.89,233.86,8.43789574]
[1732692892737,0.149,233.89,233.87,8.43789574]
[1732692892921,0.149,233.89,233.88,8.43789574]
[1732692893438,0.149,233.89,233.88,12.71349574]
[1732692900634,0.149,233.89,233.88,12.69348674]
[1732692900827,0.149,233.89,233.83,14.9681]
[1732692901142,0.149,233.89,233.88,8.43789574]
[1732692901729,0.149,233.89,233.83,14.9681]
[1732692901930,0.149,233.89,233.88,8.43789574]
[1732692902726,0.149,233.89,233.88,12.71349574]
[1732692902954,0.149,233.89,233.88,4.2756]
[1732692903132,0.149,233.89,233.88,12.71349574]
[1732692907046,4.99,234.0,233.91,20.0]
[1732692907249,4.99,234.0,233.96,8.43789574]
[1732692907553,4.99,234.0,233.99,8.43789574]
[1732692908259,4.99,234.0,233.99,12.71149574]
[1732692913247,4.99,234.0,233.99,36.48837974]
[1732692914135,4.99,234.0,233.99,4.2736]
[1732692914440,4.99,234.0,233.99,12.71149574]
[1732692915761,4.99,234.0,233.99,36.48837974]
[1732692916140,4.99,234.0,233.99,4.2736]
[1732692916346,4.99,234.0,233.99,32.71149574]
[1732692917441,4.99,234.0,233.99,4.2736]
[1732692917642,4.99,234.0,233.94,4.2746]
[1732692917837,4.99,234.0,233.92,10.6872]
[1732692918184,4.99,234.0,233.95,8.43789574]
[1732692918329,4.99,234.0,233.96,8.43789574]
[1732692918529,4.99,234.0,233.99,8.43789574]
[1732692919865,4.99,234.0,233.99,12.71149574]
[1732692922864,4.99,234.0,233.99,24.2736]
[1732692923073,4.99,234.0,233.99,12.71149574]
[1732692924063,2.8319,234.0,233.99,36.48837974]
[1732692924241,2.8319,234.0,233.99,4.2736]
[1732692924568,2.8319,234.0,233.99,12.71149574]
[1732692928869,2.8319,234.0,233.99,36.48837974]
[1732692929570,2.8319,234.0,233.99,12.71149574]
[1732692929750,2.8319,234.0,233.99,4.2736]
[1732692929949,2.8319,234.0,233.99,12.71149574]
[1732692930552,0.136,234.0,233.99,70.2399627]
[1732692930753,0.0001,234.0,233.99,70.2399627]
[1732692930959,0.5067034,234.07,234.03,20.0]
[1732692931352,0.5067034,234.07,234.06,8.43789574]
[1732692932855,0.5067034,234.07,234.06,12.71029574]
[1732692939178,0.5067034,234.07,234.06,36.48717974]
[1732692941692,0.5067034,234.07,234.06,4.2724]
[1732692941859,0.5067034,234.07,234.04,12.71049574]
[1732692942177,0.5067034,234.07,234.03,12.71079574]
[1732692942354,0.5067034,234.07,233.98,10.6844]
[1732692942355,0.5067034,234.07,234.04,8.43789574]
[1732692942982,0.5067034,234.07,233.98,14.9582]
[1732692943153,8.94459914,234.07,233.98,4.2738]
[1732692943358,0.5067034,234.07,234.01,8.43789574]
[1732692943570,8.94459914,234.07,234.0,8.43789574]
[1732692943752,8.94459914,234.07,233.98,4.2738]
[1732692943753,0.5067034,234.07,234.01,8.43789574]
[1732692945373,0.5067034,234.07,233.97,20.0]
[1732692945563,15.5929,234.06,233.95,4.2744]
[1732692945762,17.7291,234.06,234.0,8.43789574]
[1732692945980,15.5929,234.06,234.0,8.43789574]
[1732692946161,24.03079574,234.06,233.99,8.43789574]
[1732692946561,24.03079574,234.06,233.95,4.2744]
[1732692946562,8.43789574,234.05,233.97,8.43789574]
[1732692946868,8.43789574,234.04,233.97,8.43789574]
[1732692947068,0.5067034,234.07,233.92,53.6682]
[1732692947281,0.5067034,234.07,234.05,8.43789574]
[1732692949154,0.5067034,234.07,234.06,23.776884]
[1732692949774,0.5067034,234.07,234.05,23.776884]
[1732692949984,0.5067034,234.07,234.06,32.21477974]
[1732692950573,0.5067034,234.07,234.06,36.48717974]
[1732692950772,0.5067034,234.07,234.06,4.2724]
[1732692950974,0.5067034,234.07,234.06,12.71029574]
[1732692952271,0.5067034,234.07,234.06,36.48717974]
[1732692952473,2.1348,234.21,234.06,47.16817974]
[1732692952674,2.1348,234.21,234.15,8.43789574]
[1732692952889,16.4579,234.22,234.15,8.43789574]
[1732692953094,16.4579,234.22,234.17,8.43789574]
[1732692954499,16.4579,234.22,234.16,8.43789574]
[1732692954788,16.43611919,234.22,234.16,8.43789574]
[1732692955171,16.43611919,234.22,234.15,8.43789574]
[1732692955378,8.43789574,234.21,234.14,8.43789574]
[1732692956286,27.00871493,234.22,234.14,8.43789574]
[1732692958187,18.57081919,234.22,234.14,8.43789574]
[1732692958394,27.00871493,234.22,234.14,8.43789574]
[1732692959072,18.57081919,234.22,234.14,8.43789574]
[1732692959276,27.00871493,234.22,234.14,8.43789574]
[1732692960094,27.00871493,234.22,234.15,8.43789574]
[1732692960300,24.87401493,234.22,234.12,4.2711]
[1732692960473,24.87401493,234.22,234.15,8.43789574]
[1732692960874,27.00871493,234.22,234.14,8.43789574]
[1732692961070,18.57081919,234.22,234.14,8.43789574]
[1732692961395,18.57081919,234.22,234.06,10.681]
[1732692961396,10.57289574,234.19,234.06,10.681]
[1732692961687,7.4696,234.28,234.11,8.43789574]
[1732692961890,7.4696,234.28,234.14,8.43789574]
[1732692961891,8.43789574,234.22,234.14,8.43789574]
[1732692962280,8.43789574,234.22,234.09,16.0951]
[1732692962488,8.43789574,234.21,234.13,8.43789574]
[1732692962690,8.43789574,234.21,234.09,20.0]
[1732692963000,8.43789574,234.21,234.13,12.70889574]
[1732692963175,8.43789574,234.2,234.13,8.43789574]
[1732692963377,8.43789574,234.21,234.13,12.70889574]
[1732692964206,10.57259574,234.23,234.14,8.43789574]
[1732692964372,2.1347,234.23,234.16,8.43789574]
[1732692965479,10.57259574,234.23,234.15,8.43789574]
[1732692965890,8.43789574,234.22,234.15,8.43789574]
[1732692966202,2.1347,234.23,234.09,10.6794]
[1732692966203,8.43789574,234.21,234.14,8.43789574]
[1732692966410,8.43789574,234.22,234.15,8.43789574]
[1732692966778,8.43789574,234.18,234.1,8.43789574]
[1732692966974,8.43789574,234.19,234.11,8.43789574]
[1732692967195,8.43789574,234.19,234.12,8.43789574]
[1732692967393,8.43789574,234.2,234.12,8.43789574]
[1732692968214,8.43789574,234.2,234.12,12.70909574]
[1732692969201,10.57279574,234.2,234.12,12.70909574]
[1732692969399,10.57279574,234.2,234.06,34.457884]
[1732692969400,8.43789574,234.18,234.07,4.2722]
[1732692969609,8.43789574,234.18,234.1,8.43789574]
[1732692970191,8.43789574,234.18,234.11,4.2714]
[1732692970494,8.43789574,234.19,234.12,8.43789574]
[1732692971081,15.9587,234.21,234.02,5.0]
[1732692971082,8.43789574,234.17,234.05,4.2725]
[1732692971301,8.43789574,234.17,234.08,8.43789574]
[1732692971813,6.3512,234.18,234.05,4.2725]
[1732692971814,8.43789574,234.13,234.05,4.2725]
[1732692972316,8.43789574,234.11,234.05,4.2725]
[1732692972496,8.43789574,234.11,234.04,8.43789574]
[1732692972695,8.43789574,234.11,234.01,4.2733]
[1732692972909,8.43789574,234.07,233.95,4.2744]
[1732692973086,8.43789574,234.05,233.97,8.43789574]
[1732692973289,15.9587,234.11,234.02,8.43789574]
[1732692973484,15.9587,234.11,233.95,14.9604]
[1732692973485,8.43789574,234.07,233.95,4.2744]
[1732692973782,15.9587,234.11,233.95,4.2744]
[1732692973783,8.43789574,234.06,233.95,4.2744]
[1732692973984,8.43789574,234.06,233.98,8.43789574]
[1732692974184,8.43789574,234.08,234.0,8.43789574]
[1732692974394,8.43789574,234.09,234.01,8.43789574]
[1732692975106,8.43789574,234.07,233.99,8.43789574]
[1732692975486,8.43789574,234.07,234.01,8.43789574]
[1732692976306,8.43789574,234.08,234.01,8.43789574]
[1732692976610,8.43789574,234.08,234.0,4.2734]
[1732692977516,2.1359,234.09,234.01,8.43789574]
[1732692978589,8.43789574,234.08,234.0,12.71129574]
[1732692981312,10.57389574,234.08,234.0,8.43789574]
[1732692981520,2.136,234.08,234.0,8.43789574]
[1732692981700,10.57389574,234.08,234.0,12.71129574]
[1732692982810,2.1359,234.09,234.0,12.71129574]
[1732692983003,10.57379574,234.09,234.0,12.71129574]
[1732692983205,8.43789574,234.09,234.02,8.43789574]
[1732692983397,8.43789574,234.09,234.02,12.71099574]
[1732692983805,10.57379574,234.09,234.0,4.2733]
[1732692984103,10.57379574,234.09,234.0,8.43789574]
[1732692984298,8.43789574,234.06,233.95,4.2744]
[1732692984505,8.43789574,234.06,233.97,8.43789574]
[1732692985393,8.43789574,234.06,233.99,8.43789574]
[1732692985598,14.48619574,234.08,233.99,8.43789574]
[1732692985813,16.62219574,234.08,233.99,8.43789574]
[1732692986610,16.62219574,234.08,234.0,8.43789574]
[1732692986814,16.62219574,234.08,233.99,8.43789574]
[1732692988119,16.62219574,234.08,233.99,12.71149574]
[1732692988293,8.1843,234.08,234.01,8.43789574]
[1732692988493,15.9587,234.11,234.03,8.43789574]
[1732692988718,15.9587,234.11,234.05,8.43789574]
[1732692988914,15.8325,234.2,234.05,8.43789574]
[1732692989217,8.43789574,234.15,234.07,8.43789574]
[1732692989793,2.1354,234.14,234.07,8.43789574]
[1732692990409,2.1354,234.14,234.06,8.43789574]
[1732692990731,8.43789574,234.13,234.01,4.2733]
[1732692991023,8.43789574,234.11,233.96,15.563]
[1732692991320,8.43789574,234.09,234.01,8.43789574]
[1732692992017,8.43789574,234.09,234.01,12.71109574]
[1732692992601,10.57379574,234.09,234.01,8.43789574]
[1732692993120,10.57379574,234.09,234.01,12.71109574]
[1732692993513,8.43789574,234.09,234.01,12.71109574]
[1732692993815,2.1358,234.11,234.05,8.43789574]
[1732692993816,8.43789574,234.11,234.05,8.43789574]
[1732692993994,15.8325,234.12,234.05,8.43789574]
[1732692994395,8.43789574,234.11,234.04,4.2726]
[1732692994598,8.43789574,234.11,233.99,4.2736]
[1732692994806,8.43789574,234.09,234.02,8.43789574]
[1732692995014,8.43789574,234.09,233.99,4.2736]
[1732692995215,8.43789574,234.09,234.01,8.43789574]
[1732692995825,8.43789574,234.09,234.01,12.71099574]
[1732692996432,2.1358,234.1,234.01,12.71099574]
[1732692996433,8.43789574,234.11,234.03,8.43789574]
[1732692997928,10.57359574,234.11,234.03,8.43789574]
[1732693000425,10.57359574,234.11,234.03,12.71079574]
[1732693003629,10.57359574,234.11,233.98,10.6844]
[1732693003834,10.57359574,234.11,234.02,8.43789574]
[1732693004910,10.57359574,234.11,234.02,12.71089574]
[1732693006039,8.43789574,234.05,233.93,4.2747]
[1732693006211,8.43789574,234.03,233.95,8.43789574]
[1732693006402,8.43789574,234.03,233.93,4.2747]
[1732693006403,14.48619574,234.03,233.94,8.43789574]
[1732693007028,14.48619574,234.03,233.96,8.43789574]
[1732693007209,14.48619574,234.03,233.96,12.71199574]
[1732693007412,6.0483,234.03,233.96,12.71199574]
[1732693008627,15.8325,234.04,234.0,8.43789574]
[1732693009816,15.8325,234.04,233.98,8.43789574]
[1732693012328,15.8325,234.04,233.98,12.71169574]
[1732693015827,15.8325,234.04,233.97,8.43789574]
[1732693016841,15.8325,234.04,233.97,12.71169574]
[1732693019244,6.2608,234.09,233.97,12.71169574]
[1732693019245,6.2608,234.09,234.03,8.43789574]
[1732693019415,15.5896,234.1,234.05,8.43789574]
[1732693020623,15.5896,234.1,234.07,8.43789574]
[1732693021032,15.5896,234.1,234.01,4.2733]
[1732693021225,15.5896,234.1,234.05,8.43789574]
[1732693023321,17.7254,234.1,233.97,10.6851]
[1732693023839,15.5896,234.1,234.03,8.43789574]
[1732693024439,15.5896,234.1,233.98,4.2738]
[1732693024638,17.7254,234.1,234.03,8.43789574]
[1732693024942,15.5896,234.1,234.03,12.71079574]
[1732693027327,15.5896,234.1,234.05,8.43789574]
[1732693027538,15.5896,234.1,234.07,8.43789574]
[1732693027936,15.5896,234.1,234.05,8.43789574]
[1732693029224,15.5896,234.1,234.05,12.71039574]
[1732693030628,15.5896,234.1,234.06,8.43789574]
[1732693031338,15.5896,234.1,234.01,23.776884]
[1732693031520,15.5896,234.1,234.0,10.6836]
[1732693031725,15.5896,234.1,234.05,8.43789574]
[1732693032131,15.5896,234.1,234.0,10.6836]
[1732693032339,15.5896,234.1,234.04,8.43789574]
[1732693032742,15.5896,234.1,234.04,12.71059574]
[1732693032927,15.5896,234.1,234.04,4.2727]
[1732693033133,15.5896,234.1,234.04,12.71059574]
[1732693033528,15.5896,234.1,234.05,8.43789574]
[1732693034136,15.5896,234.1,234.05,8.40792574]
[1732693034350,15.5896,234.1,234.06,8.43789574]
[1732693034853,15.5896,234.1,234.06,12.71019574]
[1732693035222,8.43789574,234.13,234.06,12.71019574]
[1732693035931,8.43789574,234.13,234.05,8.43789574]
[1732693036252,8.43789574,234.12,234.05,8.43789574]
[1732693036429,2.1354,234.14,234.05,8.43789574]
[1732693036630,8.43789574,234.12,234.05,8.43789574]
[1732693037362,8.43789574,234.13,234.05,8.43789574]
[1732693037523,8.43789574,234.13,234.06,12.71029574]
[1732693037727,10.57329574,234.14,234.06,12.71029574]
[1732693038441,8.43789574,234.11,234.04,8.43789574]
[1732693038761,8.43789574,234.11,234.03,8.43789574]
[1732693039549,8.43789574,234.1,233.95,1.45377218]
[1732693039736,8.43789574,234.05,233.97,8.43789574]
[1732693040129,8.43789574,234.05,233.96,4.2742]
[1732693040130,8.43789574,234.05,233.98,8.43789574]
[1732693040544,8.43789574,234.06,233.98,8.43789574]
[1732693040833,8.43789574,234.06,233.98,12.71159574]
[1732693041234,10.57409574,234.06,233.98,12.71159574]
[1732693041655,8.43789574,234.04,233.98,8.43789574]
[1732693041841,8.43789574,234.04,233.96,8.43789574]
[1732693042356,8.43789574,234.02,233.94,4.2744]
[1732693043139,15.8413,234.03,233.94,4.2744]
[1732693043442,15.8413,234.03,234.0,8.43789574]
[1732693043645,6.6471,234.06,234.01,8.43789574]
[1732693043954,15.0,234.07,234.01,8.43789574]
[1732693044455,15.0,234.07,234.03,8.43789574]
[1732693045034,15.0,234.07,234.05,8.43789574]
[1732693046930,15.0,234.07,234.06,8.43789574]
[1732693049563,15.0,234.07,234.06,32.21477974]
[1732693051237,15.0,234.07,234.06,38.39197974]
[1732693051862,15.0,234.07,234.06,32.21477974]
[1732693056348,15.0,234.07,234.06,23.776884]
[1732693056551,15.0,234.07,234.06,32.21477974]
[1732693058650,11.8774,234.07,234.06,32.21477974]
[1732693059171,11.8774,234.07,234.06,36.48717974]
[1732693060174,11.8774,234.07,234.06,28.049284]
[1732693060466,11.8774,234.07,234.06,12.71029574]
[1732693061559,11.8774,234.07,234.06,36.48717974]
[1732693062075,11.8774,234.07,234.06,28.049284]
[1732693062260,11.8774,234.07,234.06,36.48717974]
[1732693063249,11.8774,234.07,234.06,4.2724]
[1732693063454,11.8774,234.07,234.06,12.71029574]
[1732693064274,11.8774,234.07,234.06,4.2724]
[1732693064463,11.8774,234.07,234.06,8.43789574]
[1732693065557,11.8774,234.07,234.06,36.48717974]
[1732693070877,11.8774,234.07,234.06,28.049284]
[1732693071061,11.8774,234.07,234.06,36.48717974]
[1732693072080,11.8774,234.07,234.06,4.2724]
[1732693072259,11.8774,234.07,234.06,12.71029574]
[1732693073561,11.8774,234.07,234.06,36.48717974]
[1732693074657,4.6687,234.07,234.06,36.48717974]
[1732693075679,1.8959,234.07,234.06,36.48717974]
[1732693076388,29.56979574,234.21,234.07,23.776884]
[1732693076565,29.56979574,234.21,234.14,23.776884]
[1732693077460,8.43789574,234.17,234.06,4.2724]
[1732693077687,23.2667,234.21,234.11,8.43789574]
[1732693078059,23.2667,234.21,234.13,8.43789574]
[1732693078264,31.70459574,234.21,234.13,8.43789574]
[1732693078460,31.70459574,234.21,234.13,12.70889574]
[1732693078461,21.1319,234.21,234.13,12.70889574]
[1732693078668,21.1319,234.21,234.15,8.43789574]
[1732693078869,21.1319,234.21,234.16,23.776884]
[1732693079663,21.1319,234.21,234.14,23.776884]
[1732693079965,31.70459574,234.21,234.14,32.21477974]
[1732693080166,31.70459574,234.21,234.14,23.776884]
[1732693080481,31.70459574,234.21,234.13,23.776884]
[1732693081264,8.43789574,234.19,234.1,8.43789574]
[1732693082870,10.57289574,234.19,234.1,12.70949574]
[1732693083389,10.57289574,234.19,234.06,23.776884]
[1732693083573,8.43789574,234.17,234.09,8.43789574]
[1732693083977,2.135,234.19,234.09,8.43789574]
[1732693084280,2.135,234.19,234.11,8.43789574]
[1732693084474,10.57289574,234.19,234.11,8.43789574]
[1732693084672,10.57289574,234.19,234.11,12.70919574]
[1732693084880,10.57289574,234.19,234.12,23.776884]
[1732693085666,10.57289574,234.19,234.12,23.3446198]
[1732693086068,10.57289574,234.19,234.1,4.2715]
[1732693086279,10.57289574,234.19,234.11,8.43789574]
[1732693087385,10.57289574,234.19,234.09,8.43789574]
[1732693087386,8.43789574,234.17,234.09,8.43789574]
[1732693087888,10.57289574,234.19,234.11,8.43789574]
[1732693088371,10.57289574,234.19,234.12,23.776884]
[1732693088573,8.43789574,234.2,234.12,23.776884]
[1732693088877,23.2668,234.21,234.13,8.43789574]
[1732693089076,21.1319,234.21,234.15,8.43789574]
[1732693089466,21.1319,234.21,234.15,23.776884]
[1732693090186,21.1319,234.21,234.14,4.2708]
[1732693090589,29.56979574,234.21,234.14,4.2708]
[1732693090893,31.70459574,234.21,234.14,4.2708]
[1732693091387,23.2667,234.21,234.15,8.43789574]
[1732693091584,21.1319,234.21,234.15,8.43789574]
[1732693093775,15.0666,234.21,234.15,12.70859574]
[1732693093982,15.0666,234.21,234.17,8.43789574]
[1732693094494,15.06459574,234.26,234.17,8.43789574]
[1732693094694,17.19899574,234.26,234.17,8.43789574]
[1732693095067,17.19899574,234.26,234.18,23.776884]
[1732693095372,17.19899574,234.26,234.18,28.047084]
[1732693095967,17.19899574,234.26,234.12,33.75158296]
[1732693096170,8.43789574,234.24,234.14,23.776884]
[1732693096491,8.43789574,234.24,234.16,8.43789574]
[1732693097082,10.57239574,234.24,234.16,8.43789574]
[1732693097475,2.1345,234.24,234.16,32.21477974]
[1732693097679,10.57239574,234.24,234.16,23.776884]
[1732693097983,8.43789574,234.22,234.11,23.776884]
[1732693098195,8.43789574,234.22,234.14,23.776884]
[1732693099083,10.57259574,234.22,234.14,23.776884]
[1732693099696,10.57259574,234.22,234.13,8.43789574]
[1732693099996,8.43789574,234.2,234.13,8.43789574]
[1732693100879,8.43789574,234.2,234.13,12.70899574]
[1732693101975,8.43789574,234.22,234.14,23.776884]
[1732693103303,8.761,234.26,234.17,8.43789574]
[1732693103480,8.43789574,234.25,234.17,8.43789574]
[1732693104298,8.43789574,234.25,234.16,23.776884]
[1732693104497,6.6267,234.26,234.16,32.21477974]
[1732693104892,8.43789574,234.25,234.16,32.21477974]
[1732693105702,8.43789574,234.23,234.16,23.776884]
[1732693106485,6.6267,234.26,234.18,8.43789574]
[1732693107801,6.6267,234.26,234.19,4.27]
[1732693108180,15.0285,234.27,234.2,8.43789574]
[1732693108498,15.0285,234.27,234.22,8.43789574]
[1732693108690,15.0285,234.27,234.24,8.43789574]
[1732693108877,0.5067034,234.3,234.26,8.43789574]
[1732693109079,0.5067034,234.3,234.29,8.43789574]
[1732693109989,0.5067034,234.3,234.29,32.21477974]
[1732693111916,0.5067034,234.3,234.29,8.43789574]
[1732693112210,0.5067034,234.3,234.25,4.2688]
[1732693112211,0.5067034,234.3,234.28,8.43789574]
[1732693112895,0.5067034,234.3,234.22,23.776884]
[1732693113111,0.5067034,234.3,234.25,8.43789574]
[1732693114210,0.5067034,234.3,234.27,8.43789574]
[1732693115193,0.5067034,234.3,234.29,8.43789574]
[1732693115393,0.5067034,234.3,234.29,32.21477974]
[1732693115595,0.5067034,234.3,234.29,8.43789574]
[1732693116607,0.5067034,234.3,234.28,23.776884]
[1732693116807,0.5067034,234.3,234.29,8.43789574]
[1732693117914,0.5067034,234.3,234.28,8.43789574]
[1732693119406,2.6407034,234.3,234.25,8.43789574]